bitfinex/quotes_ETHUSD_20241225
["timestamp","ask_amount","ask_price","bid_price","bid_amount"]
[1735144278095,0.7955,3460.9,3460.4,1.79875084]
[1735144278295,0.02888574,3460.8,3460.4,1.79875084]
[1735144278708,0.02888574,3460.8,3460.4,2.44852276]
[1735144278910,0.7955,3461.2,3460.5,0.8033]
[1735144279111,0.7955,3461.2,3460.6,2.88963]
[1735144279334,0.02888574,3461.1,3460.4,4.13239389]
[1735144279743,0.7955,3461.0,3460.4,0.59281197]
[1735144280398,2.8896,3460.7,3460.1,1.20593887]
[1735144280599,2.88969,3460.6,3460.1,1.20593887]
[1735144280797,0.7955,3460.4,3460.1,1.20593887]
[1735144281202,0.7955,3460.3,3460.1,1.20593887]
[1735144281403,0.82339294,3460.3,3460.1,1.20593887]
[1735144282145,0.82339294,3460.3,3459.5,3.06760342]
[1735144282652,0.7955,3460.3,3459.5,3.06760342]
[1735144283540,1.164041,3460.3,3459.5,0.56538594]
[1735144283837,0.8282,3460.2,3459.5,0.56538594]
[1735144284242,0.85556563,3460.2,3459.5,0.56538594]
[1735144285035,2.88953,3460.8,3459.3,5.39270596]
[1735144285036,0.8282,3459.8,3459.3,2.50197596]
[1735144285805,0.02641747,3459.7,3459.2,1.20593887]
[1735144286208,2.91691747,3459.7,3459.2,1.20593887]
[1735144286520,0.0263316,3459.6,3459.2,1.20593887]
[1735144286708,0.8282,3459.5,3459.2,1.20593887]
[1735144286907,3.71879,3459.5,3459.2,1.20593887]
[1735144287106,0.0263316,3459.4,3459.2,1.20593887]
[1735144287508,0.55,3459.3,3459.2,8.87e-06]
[1735144287710,3.71912,3459.1,3459.0,1.80890831]
[1735144287917,3.55,3459.2,3458.1,1.20928929]
[1735144287918,0.8282,3458.3,3458.1,1.20928929]
[1735144288343,0.02608623,3458.2,3458.1,1.20928929]
[1735144288527,2.91775623,3458.2,3458.1,1.20928929]
[1735144289238,0.02608623,3458.2,3458.1,1.20928929]
[1735144289446,0.8282,3458.3,3458.1,1.20928929]
[1735144289621,0.8282,3458.3,3457.2,0.784]
[1735144289816,0.8282,3458.3,3457.3,2.89242]
[1735144290164,0.8282,3458.3,3457.4,0.367642]
[1735144291616,0.8282,3458.3,3457.6,2.89217]
[1735144291942,0.8282,3458.3,3458.0,2.89183]
[1735144292147,0.8282,3459.2,3458.0,2.89183]
[1735144292644,0.8282,3459.2,3457.9,0.784]
[1735144292846,1.19471388,3459.8,3458.6,0.784]
[1735144292847,0.8282,3459.7,3458.6,0.784]
[1735144293020,0.8282,3459.7,3458.8,2.89115]
[1735144293356,0.8282,3459.7,3458.6,3.784]
[1735144293558,1.19471388,3459.8,3458.9,2.35530075]
[1735144293729,1.19471388,3459.8,3459.0,3.29373389]
[1735144293923,1.19471388,3459.8,3459.3,2.89074]
[1735144294122,0.8282,3460.1,3459.3,2.89074]
[1735144294517,0.8282,3460.1,3459.1,2.89092]
[1735144294848,0.8282,3460.1,3459.5,2.89057]
[1735144295050,0.8282,3460.1,3459.6,0.371977]
[1735144295765,0.8282,3460.1,3459.6,2.89048]
[1735144299383,0.8282,3460.1,3459.3,0.8292]
[1735144299551,0.8282,3460.1,3459.5,0.58411356]
[1735144301046,0.8282,3460.1,3459.6,2.89048]
[1735144301570,0.7557,3460.5,3460.1,2.89006]
[1735144303771,0.7557,3460.5,3460.1,3.179066]
[1735144303931,1.3057,3461.1,3460.1,3.179066]
[1735144304265,0.7557,3461.1,3460.3,2.88991]
[1735144304474,0.7557,3461.1,3460.1,3.179066]
[1735144305100,0.7557,3460.9,3459.9,2.89024]
[1735144306661,0.7557,3460.9,3460.2,0.58953044]
[1735144308059,0.7557,3460.9,3459.9,2.89024]
[1735144308263,3.64512,3460.9,3459.9,2.89024]
[1735144308910,0.7557,3461.1,3459.8,0.57842032]
[1735144309077,2.88883,3461.6,3459.5,3.0]
[1735144309078,0.7557,3460.5,3459.5,3.0]
[1735144309264,3.64547,3460.5,3459.4,2.89059]
[1735144309667,3.64547,3460.5,3459.8,0.59062988]
[1735144310707,0.7557,3460.5,3459.8,0.59062988]
[1735144311065,0.7557,3460.5,3460.0,2.89016]
[1735144311266,0.7557,3460.5,3460.1,0.34807899]
[1735144311708,0.7557,3461.3,3460.1,0.34807899]
[1735144311948,0.7557,3461.3,3460.6,2.88965]
[1735144312070,0.7557,3461.3,3460.7,2.88955]
[1735144312269,0.7557,3461.3,3460.7,0.29184438]
[1735144312507,0.7557,3461.8,3461.0,2.88933]
[1735144312815,0.7557,3461.8,3461.0,0.7555]
[1735144312971,0.7557,3461.8,3461.2,2.8891]
[1735144315472,0.7557,3461.8,3461.0,4.21854324]
[1735144316296,0.7557,3461.8,3461.1,2.88924]
[1735144318895,0.7557,3461.8,3461.3,2.88905]
[1735144319407,0.7557,3461.8,3461.1,0.64629732]
[1735144319625,0.7557,3461.8,3461.4,2.88899]
[1735144320115,0.759,3462.3,3461.4,2.88899]
[1735144323310,0.759,3462.3,3461.4,3.67309]
[1735144323612,0.759,3462.3,3461.5,0.367309]
[1735144324726,0.759,3462.3,3461.5,2.88891]
[1735144325246,0.759,3462.3,3461.4,0.7841]
[1735144325546,0.02759445,3462.2,3461.3,2.88907]
[1735144326109,0.759,3462.0,3461.1,0.64629732]
[1735144326541,0.02759445,3461.9,3461.1,0.64629732]
[1735144326742,0.02759445,3461.9,3461.2,0.41573006]
[1735144328548,0.8194,3461.8,3461.2,0.41573006]
[1735144328752,0.8194,3461.8,3461.1,2.88924]
[1735144329129,0.02759445,3461.7,3461.1,2.88924]
[1735144329552,0.8194,3461.8,3461.0,0.62173324]
[1735144329754,2.88842,3462.1,3461.0,0.048]
[1735144329755,0.8194,3461.7,3461.0,0.048]
[1735144329960,2.88902,3461.4,3461.0,0.048]
[1735144330261,3.70865,3461.1,3461.0,0.048]
[1735144330817,3.73600545,3461.1,3461.0,0.048]
[1735144332159,4.28600545,3461.1,3461.0,0.048]
[1735144332358,0.8194,3460.2,3459.6,0.59011537]
[1735144332577,3.70944,3460.2,3459.1,3.65224]
[1735144332724,0.02628877,3460.1,3459.2,0.60069747]
[1735144333119,0.8194,3460.2,3459.2,0.60069747]
[1735144333324,0.8194,3459.8,3458.7,2.89124]
[1735144333524,0.8194,3459.8,3458.5,3.11613465]
[1735144333885,2.8906,3459.5,3458.5,35.0]
[1735144334021,2.8906,3459.5,3458.3,2.89157]
[1735144334222,0.8194,3459.6,3458.4,0.72106903]
[1735144334461,0.8194,3459.3,3458.4,0.72106903]
[1735144335044,0.8194,3459.3,3458.5,0.58334706]
[1735144335827,0.8194,3459.3,3458.7,2.89125]
[1735144337167,0.8194,3459.3,3458.5,0.58334706]
[1735144337369,0.8194,3459.3,3458.5,1.66823367]
[1735144338469,0.8194,3459.3,3458.5,4.55960367]
[1735144340266,0.8194,3459.3,3457.8,8.82]
[1735144340267,0.8194,3459.0,3457.9,3.0]
[1735144340431,2.89036,3459.8,3457.8,3.0]
[1735144340432,0.8194,3458.8,3457.8,3.0]
[1735144340630,3.71057,3458.8,3457.8,3.0]
[1735144340866,2.89126,3458.7,3457.9,0.589202]
[1735144341186,2.8917,3458.2,3457.7,0.58683556]
[1735144341465,0.8194,3458.1,3457.4,1.20298567]
[1735144342033,0.8194,3458.1,3457.2,2.89246]
[1735144342529,0.8194,3458.1,3457.0,2.89266]
[1735144342747,0.8194,3458.1,3457.3,0.58162491]
[1735144342968,0.7655,3459.1,3457.4,0.821]
[1735144343130,0.7655,3459.1,3457.7,2.86765505]
[1735144343332,0.7655,3459.1,3457.8,3.0]
[1735144343538,0.7655,3459.1,3458.0,0.821]
[1735144343775,0.7655,3459.1,3458.2,2.89159]
[1735144343954,0.7655,3459.1,3458.5,2.89141]
[1735144344495,0.7655,3459.1,3458.1,0.671292]
[1735144344807,0.7655,3459.1,3458.6,2.89132]
[1735144345081,0.7655,3459.1,3458.5,2.89141]
[1735144345385,0.7655,3459.1,3458.6,0.289141]
[1735144345593,0.7655,3459.8,3458.7,3.47473245]
[1735144345793,3.65584,3459.8,3458.7,3.47473245]
[1735144345995,2.89043,3459.7,3458.7,0.58350245]
[1735144347270,0.7655,3459.6,3458.7,0.58350245]
[1735144347498,0.7655,3459.6,3458.8,0.34747625]
[1735144347784,2.88968,3460.6,3458.7,0.58350245]
[1735144347785,2.89072,3459.4,3458.7,0.58350245]
[1735144348644,0.7655,3459.3,3457.7,3.68865505]
[1735144348906,0.7655,3458.9,3457.7,0.821]
[1735144349184,0.365653,3458.8,3457.9,3.0]
[1735144349474,0.7655,3458.9,3457.7,1.2031]
[1735144349674,0.7655,3458.9,3458.1,3.0]
[1735144349977,3.65661,3458.9,3458.3,0.58778738]
[1735144350183,0.7655,3458.5,3457.6,3.0]
[1735144350345,0.7655,3458.5,3457.8,0.58709252]
[1735144350551,1.131184,3458.5,3457.8,0.58709252]
[1735144351580,0.7655,3458.4,3457.5,2.89222]
[1735144351875,0.7655,3458.4,3457.6,2.89216]
[1735144352986,0.7655,3458.4,3457.7,0.58255968]
[1735144353483,0.7655,3458.4,3457.8,2.892]
[1735144354879,0.7655,3458.4,3457.7,0.58255968]
[1735144355087,0.7655,3458.4,3457.9,2.8919]
[1735144356188,0.7655,3458.4,3457.9,3.23934597]
[1735144357375,0.7655,3459.1,3458.1,2.89175]
[1735144358582,0.7655,3459.1,3458.2,2.89165]
[1735144359652,0.7655,3459.1,3458.0,2.89182]
[1735144359956,0.55,3459.1,3457.7,3.47456968]
[1735144360156,2.89126,3458.7,3457.7,3.47456968]
[1735144360387,0.7941,3458.6,3457.7,3.47456968]
[1735144361289,0.7941,3458.6,3458.0,0.048]
[1735144363478,2.89143,3458.5,3458.0,0.048]
[1735144363682,0.7941,3458.4,3458.0,0.048]
[1735144363886,1.162653,3458.4,3458.0,0.048]
[1735144364086,0.7941,3458.4,3458.0,0.048]
[1735144366204,3.68568,3458.4,3458.0,0.048]
[1735144366383,0.7941,3458.3,3458.0,0.048]
[1735144366704,3.44176,3458.1,3458.0,0.048]
[1735144366873,4.580036,3458.1,3458.0,0.048]
[1735144368004,7.580036,3458.1,3458.0,0.048]
[1735144368211,3.0,3458.0,3456.2,2.89327]
[1735144368412,3.0,3458.0,3456.1,1.99228567]
[1735144368413,3.68662,3457.2,3456.1,1.20298567]
[1735144368615,0.7941,3457.0,3455.8,3.14793645]
[1735144368916,0.7941,3457.0,3456.3,3.45833903]
[1735144369209,0.7941,3457.0,3455.8,6.04156645]
[1735144369505,0.7941,3457.0,3456.2,0.57952044]
[1735144371486,0.7941,3457.0,3456.1,2.89342]
[1735144371681,2.89269,3457.0,3455.9,3.49773665]
[1735144372006,0.7941,3456.9,3455.9,0.60415665]
[1735144372214,0.7941,3456.9,3456.2,2.89333]
[1735144372505,0.7941,3456.9,3456.0,0.57152785]
[1735144372684,0.7941,3456.9,3456.3,2.89325]
[1735144373075,0.7941,3456.9,3456.2,2.89335]
[1735144373475,0.7941,3456.9,3456.0,0.57152785]
[1735144373675,1.162761,3456.9,3456.0,0.57152785]
[1735144373874,0.7941,3456.9,3456.0,0.57152785]
[1735144374577,0.8052,3456.7,3456.0,0.57152785]
[1735144375316,0.8052,3456.7,3455.7,2.89375]
[1735144375709,0.8052,3456.6,3455.5,2.89392]
[1735144375873,0.8052,3456.5,3455.5,2.89392]
[1735144377016,0.8052,3456.3,3455.1,2.89424]
[1735144377217,0.8052,3456.3,3455.0,2.35863645]
[1735144377218,0.8052,3456.2,3455.2,2.89206]
[1735144377406,0.8052,3456.2,3455.3,0.33104017]
[1735144378281,0.8052,3456.2,3455.0,2.35863645]
[1735144378481,0.8052,3456.2,3455.3,2.89409]
[1735144379122,0.8052,3456.2,3455.4,0.57424749]
[1735144380220,0.8052,3456.2,3455.5,2.89392]
[1735144380922,0.8052,3456.2,3455.4,0.57424749]
[1735144381802,0.8052,3456.2,3455.4,3.46824749]
[1735144382010,0.8052,3456.2,3455.6,2.89384]
[1735144382716,0.8052,3456.2,3455.4,4.11507224]
[1735144383923,0.8052,3456.2,3455.5,2.89391]
[1735144384457,0.8052,3456.2,3455.4,0.57424749]
[1735144384922,0.8052,3456.2,3455.5,2.89391]
[1735144385107,0.8052,3456.2,3455.5,3.24072575]
[1735144385309,0.8052,3456.2,3455.4,0.57424749]
[1735144385729,0.8052,3456.0,3455.4,0.57424749]
[1735144388105,0.8052,3456.0,3454.3,3.71966]
[1735144388305,0.7842,3455.3,3454.6,0.57966647]
[1735144388926,0.7842,3455.2,3454.6,0.57966647]
[1735144390029,2.89422,3455.2,3454.6,0.57966647]
[1735144390224,0.7842,3454.9,3453.9,0.54239614]
[1735144390454,0.7842,3455.0,3453.9,0.54239614]
[1735144390674,0.7842,3454.5,3453.9,0.54239614]
[1735144391617,0.7842,3454.5,3454.0,0.57856554]
[1735144391818,1.152091,3454.5,3454.0,0.57856554]
[1735144392047,0.7842,3454.4,3454.0,0.57856554]
[1735144392262,0.7842,3454.4,3453.9,0.0892553]
[1735144393264,3.67906,3454.4,3453.9,0.0892553]
[1735144393563,2.89486,3454.4,3453.9,0.0892553]
[1735144393756,3.0,3455.1,3453.9,0.0892553]
[1735144393757,2.89495,3454.3,3453.9,0.0892553]
[1735144393948,0.7842,3454.2,3453.9,0.0892553]
[1735144394461,3.67922,3454.2,3453.9,0.0892553]
[1735144394929,0.7842,3454.2,3453.9,0.0892553]
[1735144397137,1.3411,3454.9,3453.9,2.9845053]
[1735144397339,0.50974961,3454.8,3453.9,2.9845053]
[1735144398078,0.50974961,3454.8,3454.3,0.00289]
[1735144398576,0.7911,3454.8,3454.3,0.00289]
[1735144399542,0.7911,3454.8,3454.3,2.89782]
[1735144400170,0.7911,3454.8,3454.3,0.00289]
[1735144400354,0.7911,3454.8,3454.3,0.00189]
[1735144401478,0.7911,3454.8,3454.3,0.5763004]
[1735144403177,0.7911,3454.8,3454.3,0.5744104]
[1735144403495,0.55,3454.7,3454.1,3.68443526]
[1735144403709,0.55,3454.6,3454.1,3.68443526]
[1735144403916,1.158163,3454.6,3454.1,3.68443526]
[1735144404111,0.8137,3454.6,3454.1,3.68443526]
[1735144405391,0.55,3454.3,3454.1,3.68443526]
[1735144405719,4.25872,3454.2,3454.1,3.68443526]
[1735144412464,0.08,3453.3,3451.7,0.30010925]
[1735144412670,0.08,3453.3,3451.6,0.1741783]
[1735144412671,0.55,3452.2,3451.6,0.1741783]
[1735144412972,3.71082,3451.7,3451.6,0.1741783]
[1735144413172,7.26082,3451.7,3451.6,0.1741783]
[1735144413629,8.37467958,3451.7,3451.6,0.1741783]
[1735144413837,4.26174,3450.6,3448.5,6.98012495]
[1735144414140,4.26174,3450.6,3449.4,0.57284009]
[1735144414265,0.55,3450.5,3449.4,1.77865877]
[1735144414467,0.55,3450.5,3449.5,3.54758868]
[1735144414699,3.66356,3450.6,3449.4,1.77865877]
[1735144414905,2.89832,3450.3,3449.4,1.77865877]
[1735144415117,2.89832,3450.3,3449.4,1.20581868]
[1735144415271,0.55,3450.2,3449.4,1.20581868]
[1735144415700,0.55,3449.9,3448.6,0.7897]
[1735144415893,3.44865,3449.9,3448.6,0.7897]
[1735144416069,0.55,3450.0,3448.7,0.368946]
[1735144416430,0.55,3450.3,3449.1,2.89929]
[1735144416731,0.55,3450.5,3448.6,0.7897]
[1735144416889,0.55,3449.8,3448.7,0.58436072]
[1735144417070,0.55,3449.8,3447.9,2.90026]
[1735144417071,0.55,3449.6,3447.9,0.7897]
[1735144417274,0.55,3449.6,3448.1,3.03046461]
[1735144417488,0.55,3449.6,3448.1,0.1841783]
[1735144417693,0.55,3449.6,3448.2,0.56816235]
[1735144417918,0.55,3449.4,3448.1,0.1841783]
[1735144418128,2.89955,3448.9,3448.1,0.1841783]
[1735144418440,3.44908,3449.4,3448.1,0.1841783]
[1735144418441,0.55,3449.4,3448.1,0.1841783]
[1735144419280,0.55,3448.8,3448.1,0.1841783]
[1735144419543,1.10157756,3449.3,3448.1,0.1841783]
[1735144419681,3.44923,3449.2,3448.1,0.1841783]
[1735144419883,3.68172,3449.1,3448.1,0.1841783]
[1735144420101,0.7824,3449.1,3448.1,0.1841783]
[1735144420301,2.89962,3448.8,3448.1,0.1841783]
[1735144420544,0.7824,3449.1,3448.1,0.1841783]
[1735144420740,3.68172,3449.1,3448.1,0.1841783]
[1735144420902,0.7824,3449.1,3448.1,0.1841783]
[1735144421987,0.55,3448.8,3448.1,0.1841783]
[1735144422185,0.55,3448.6,3448.1,0.1841783]
[1735144422401,0.55,3448.4,3448.1,0.1841783]
[1735144422954,0.55,3448.6,3448.1,0.1841783]
[1735144423294,0.55,3448.4,3448.1,0.1841783]
[1735144423535,0.55,3448.3,3448.1,0.1841783]
[1735144423892,0.55,3448.5,3447.3,2.9008]
[1735144424129,0.55,3448.5,3447.4,0.59008]
[1735144424434,3.44982,3448.5,3447.4,0.59008]
[1735144424635,0.55,3448.5,3447.3,3.0]
[1735144424857,0.55,3448.3,3447.1,3.0]
[1735144425053,0.55,3448.3,3447.1,5.90097]
[1735144425241,0.55,3448.6,3447.4,2.90072]
[1735144425557,0.55,3448.6,3447.4,2.85072]
[1735144425850,0.55,3448.6,3447.5,0.285072]
[1735144426156,0.55,3448.3,3447.1,2.90095]
[1735144427719,0.7824,3448.7,3446.9,1.34312993]
[1735144427720,2.89975,3448.6,3446.9,1.34312993]
[1735144427919,0.7824,3448.7,3446.9,1.34312993]
[1735144428118,3.68206,3448.7,3446.9,4.24427993]
[1735144428381,3.68206,3448.7,3447.0,0.42607799]
[1735144428536,0.7824,3448.7,3447.1,3.0]
[1735144428877,0.7824,3448.7,3447.2,2.9009]
[1735144429217,3.68205,3448.7,3447.4,2.90073]
[1735144429413,3.68205,3448.7,3447.0,3.42607799]
[1735144429670,0.7824,3448.7,3447.1,2.84628631]
[1735144429834,0.7824,3448.7,3447.8,2.90036]
[1735144430033,0.46587419,3449.7,3447.3,3.0]
[1735144430034,2.89917,3449.3,3447.3,3.0]
[1735144430361,3.39834,3450.3,3447.2,5.78386127]
[1735144430362,2.89855,3450.0,3448.8,2.89955]
[1735144430667,0.7824,3450.1,3448.2,3.7734]
[1735144430838,2.89875,3449.8,3448.5,2.8998]
[1735144431029,2.89881,3449.7,3448.5,2.8998]
[1735144431230,0.7824,3449.6,3448.2,0.7734]
[1735144431440,2.89915,3449.3,3448.2,0.7734]
[1735144431626,2.89915,3449.3,3448.1,3.47895286]
[1735144431823,2.89915,3449.3,3448.1,3.24803529]
[1735144432028,0.55,3449.2,3448.1,3.24803529]
[1735144432562,3.44898,3449.5,3448.1,0.34789529]
[1735144432748,3.44898,3449.5,3447.7,4.34436564]
[1735144433155,3.44898,3449.5,3448.3,2.89989]
[1735144433585,3.44898,3449.5,3447.7,4.34436564]
[1735144433586,2.89913,3449.4,3448.0,2.90018]
[1735144433756,0.55,3449.5,3447.7,4.34436564]
[1735144434074,0.55,3449.2,3448.0,2.90022]
[1735144434230,0.55,3449.2,3448.0,3.62467856]
[1735144434431,0.55,3449.2,3448.1,2.90012]
[1735144434940,0.55,3449.5,3448.0,0.72445856]
[1735144435146,0.55,3449.5,3448.5,2.8998]
[1735144435531,0.7824,3449.6,3448.6,2.8997]
[1735144435732,0.7824,3449.6,3448.2,2.90006]
[1735144436033,0.7824,3449.6,3448.7,2.89963]
[1735144436230,0.7824,3449.6,3448.6,0.7906]
[1735144436458,0.8037,3450.0,3449.0,2.89937]
[1735144436664,0.8037,3450.0,3448.6,0.7906]
[1735144437169,0.8037,3450.0,3449.0,2.89937]
[1735144438174,0.55,3449.9,3448.6,0.7906]
[1735144439885,0.55,3449.9,3449.0,2.89933]
[1735144440550,0.55,3449.9,3448.6,0.7906]
[1735144440750,3.44867,3449.9,3448.8,2.89953]
[1735144441147,3.0,3450.3,3448.1,0.7906]
[1735144441148,0.8037,3449.8,3448.1,0.7906]
[1735144441479,1.3537,3449.2,3448.1,3.69066]
[1735144441678,1.3537,3449.2,3448.1,4.48924472]
[1735144442073,0.8037,3449.2,3448.1,4.48924472]
[1735144442785,0.8037,3449.2,3448.1,3.69066]
[1735144443083,0.8037,3449.2,3448.6,2.89972]
[1735144443384,0.8037,3450.0,3448.2,2.90001]
[1735144443583,3.70226,3450.0,3448.8,2.89951]
[1735144443787,3.70226,3450.0,3448.4,2.89989]
[1735144443788,3.70226,3450.0,3448.9,2.89947]
[1735144443956,3.70226,3450.0,3449.0,2.89938]
[1735144444144,3.70225,3450.0,3449.0,2.89938]
[1735144444346,2.89865,3449.9,3448.7,2.89961]
[1735144444554,2.89865,3449.9,3448.3,2.89993]
[1735144444784,2.89865,3449.9,3448.4,0.369053]
[1735144445006,2.89865,3449.9,3448.8,2.89948]
[1735144445215,0.8037,3450.0,3448.9,2.89946]
[1735144445512,0.8037,3450.0,3449.0,0.02899172]
[1735144445809,0.8037,3450.2,3449.1,2.89929]
[1735144446011,3.70209,3450.2,3449.1,2.89929]
[1735144446604,0.8037,3450.2,3448.5,0.7906]
[1735144446828,2.89906,3449.4,3448.4,0.369053]
[1735144446971,0.55,3449.5,3448.1,0.7906]
[1735144447173,0.55,3449.5,3448.1,1.159685]
[1735144447398,0.8037,3449.6,3448.1,1.159685]
[1735144447602,0.55,3449.5,3448.1,1.159685]
[1735144447791,2.89907,3449.4,3448.3,2.89996]
[1735144448107,2.89948,3448.9,3447.7,3.69101]
[1735144448309,0.55,3449.1,3447.7,0.7906]
[1735144448486,2.89946,3449.0,3447.9,2.90031]
[1735144448689,2.89949,3448.9,3447.9,2.90031]
[1735144449509,0.818,3449.2,3447.9,0.369091]
[1735144449814,0.818,3449.9,3448.6,0.7554]
[1735144450010,0.818,3449.9,3448.9,2.89944]
[1735144450230,0.818,3449.9,3448.9,2.89943]
[1735144450526,3.71615,3450.5,3448.8,2.89948]
[1735144450673,3.71615,3450.5,3449.4,2.89903]
[1735144451029,0.818,3450.5,3448.9,0.655452]
[1735144451172,0.818,3450.5,3449.2,2.88296127]
[1735144451373,0.818,3451.1,3449.5,2.89895]
[1735144451595,2.8978,3450.9,3449.7,2.89874]
[1735144451808,0.818,3451.1,3449.6,0.365435]
[1735144451809,0.818,3451.1,3449.9,2.89858]
[1735144451981,0.818,3451.1,3449.9,2.8986]
[1735144452182,2.8978,3450.9,3449.9,2.8986]
[1735144452778,0.818,3451.1,3449.6,0.365435]
[1735144452978,2.89773,3451.0,3449.9,2.89858]
[1735144453284,0.818,3451.1,3450.0,2.89852]
[1735144453477,0.818,3450.7,3449.2,2.89914]
[1735144453673,0.818,3450.7,3448.9,0.655452]
[1735144453674,2.89813,3450.5,3448.9,3.65479]
[1735144453879,3.71621,3450.4,3449.3,2.89912]
[1735144454111,0.55,3450.3,3449.3,2.89912]
[1735144454428,0.818,3450.4,3449.6,2.89887]
[1735144454577,0.818,3450.4,3448.9,3.65482]
[1735144454578,0.818,3450.4,3449.9,2.89861]
[1735144454782,0.818,3450.4,3450.0,2.89854]
[1735144456435,0.818,3450.4,3449.0,0.7554]
[1735144456794,3.71621,3450.4,3449.3,2.89912]
[1735144457308,1.368,3450.0,3448.9,2.89945]
[1735144457514,3.71674,3449.8,3448.7,2.89963]
[1735144457708,0.818,3449.6,3448.5,2.89981]
[1735144458006,0.55,3449.5,3448.5,2.89981]
[1735144458914,0.818,3449.4,3448.0,2.88296127]
[1735144459102,0.818,3449.4,3448.4,2.89989]
[1735144459295,0.818,3449.1,3448.0,2.90023]
[1735144459724,0.818,3449.1,3448.2,2.90006]
[1735144460034,0.818,3449.1,3448.0,2.90023]
[1735144460233,0.818,3449.1,3448.0,0.34893479]
[1735144460234,1.17506183,3449.0,3448.0,0.34893479]
[1735144460409,1.17506183,3449.0,3448.7,2.89955]
[1735144461336,1.76259275,3449.2,3448.7,2.89955]
[1735144461337,1.17506183,3449.2,3448.7,2.89955]
[1735144461831,1.17506183,3449.2,3448.3,0.7554]
[1735144462032,1.17506183,3449.2,3448.0,0.34893479]
[1735144462433,1.17506183,3449.3,3448.0,0.34893479]
[1735144462648,0.818,3448.4,3447.8,0.58911794]
[1735144462812,0.818,3448.4,3447.4,2.9007]
[1735144463013,0.818,3448.4,3446.8,2.90124]
[1735144463309,0.818,3448.4,3447.6,2.90054]
[1735144463526,0.818,3448.4,3447.5,0.56988544]
[1735144463731,0.818,3448.4,3447.7,2.90045]
[1735144464036,0.818,3448.4,3447.6,2.90054]
[1735144464598,0.818,3448.4,3447.8,2.90039]
[1735144464803,1.99406183,3448.7,3447.7,3.72248]
[1735144465239,2.65530595,3448.3,3447.7,0.822]
[1735144466035,2.65530595,3448.3,3448.2,2.90006]
[1735144466235,0.819,3448.7,3448.2,2.90006]
[1735144466645,1.17506183,3448.9,3448.2,0.290006]
[1735144466803,1.17506183,3448.9,3448.7,2.89958]
[1735144467141,1.17506183,3448.9,3448.8,2.89955]
[1735144467343,1.17506183,3449.3,3448.9,2.89945]
[1735144468530,1.17506183,3449.3,3449.0,2.89938]
[1735144468840,2.89839,3450.2,3449.0,2.89938]
[1735144468841,1.99406183,3449.9,3449.0,2.89938]
[1735144469041,1.99406183,3449.9,3449.2,2.89917]
[1735144469403,1.99406183,3449.9,3449.3,2.89907]
[1735144469736,1.99406183,3449.9,3448.7,2.88296127]
[1735144469941,1.99406183,3449.9,3449.1,2.89929]
[1735144470105,0.819,3449.9,3449.2,2.89921]
[1735144470304,0.819,3449.9,3449.3,2.8991]
[1735144470503,1.17506183,3450.1,3448.9,0.822]
[1735144470733,1.17506183,3450.1,3449.7,2.89876]
[1735144471255,0.819,3450.3,3449.7,2.89876]
[1735144471740,1.17506183,3450.5,3449.7,2.89876]
[1735144472548,0.819,3450.7,3449.7,2.89876]
[1735144473015,0.819,3450.7,3449.5,2.89896]
[1735144473217,0.819,3450.7,3449.2,2.89914]
[1735144473218,0.819,3450.7,3449.3,2.89913]
[1735144473406,0.819,3450.7,3449.6,2.89886]
[1735144474142,0.819,3450.7,3449.7,2.8988]
[1735144474342,0.819,3450.7,3449.2,0.66041013]
[1735144474505,0.819,3450.7,3450.0,2.89851]
[1735144475547,0.819,3450.7,3449.5,5.78193127]
[1735144476536,0.819,3450.7,3449.8,2.89868]
[1735144476843,0.819,3450.7,3449.9,2.8986]
[1735144479062,0.819,3450.7,3450.0,2.89854]
[1735144480352,0.7879,3450.4,3448.9,0.8043]
[1735144480554,0.7879,3450.4,3449.6,2.89883]
[1735144480762,0.7879,3450.4,3449.1,2.88296127]
[1735144480928,0.7879,3450.8,3449.6,2.89884]
[1735144481141,1.17506183,3450.7,3449.6,2.89884]
[1735144481327,1.17506183,3450.7,3450.0,2.8985]
[1735144482840,0.7879,3450.8,3450.0,2.8985]
[1735144485168,0.7879,3450.8,3449.4,5.7981]
[1735144485363,0.7879,3450.8,3450.1,2.89841]
[1735144485542,0.7879,3450.8,3450.1,2.81361]
[1735144485865,1.17506183,3451.0,3450.0,0.7922]
[1735144486029,1.17506183,3451.0,3450.9,2.89779]
[1735144486229,1.68765458,3451.4,3451.0,2.89768]
[1735144486624,1.68765458,3451.4,3451.1,2.89756]
[1735144486866,1.68765458,3451.4,3451.2,2.89751]
[1735144487265,2.35012367,3451.5,3451.2,2.89751]
[1735144487441,0.8319,3451.8,3451.2,2.89751]
[1735144487641,3.18202367,3452.2,3451.5,2.89727]
[1735144488067,3.18202367,3452.2,3451.6,2.89716]
[1735144488267,3.18202367,3452.2,3451.2,0.289751]
[1735144488473,3.18202367,3452.2,3451.4,2.89735]
[1735144488969,2.89692,3452.0,3450.9,0.57200732]
[1735144489170,2.89697,3451.9,3450.8,2.89781]
[1735144489467,0.8319,3451.6,3450.7,2.89795]
[1735144489653,0.8319,3451.6,3450.3,2.88296127]
[1735144489855,0.8319,3451.6,3450.4,3.56572613]
[1735144490073,0.8319,3451.6,3450.7,2.89791]
[1735144490382,0.8319,3451.6,3450.3,2.88296127]
[1735144490584,0.8319,3451.6,3450.7,2.89792]
[1735144491881,0.8319,3451.6,3450.1,0.7922]
[1735144491882,3.44729,3451.5,3450.4,2.89821]
[1735144492270,0.55,3451.5,3450.5,2.89811]
[1735144492589,0.8319,3451.6,3450.6,2.89803]